bitfinex-derivatives/quotes_BTCF0:USTF0_20251103
["timestamp","ask_amount","ask_price","bid_price","bid_amount"]
[1762202702665,0.3608,106730.0,106720.0,0.50905877]
[1762202702962,0.3258,106730.0,106720.0,0.52578899]
[1762202703164,0.3258,106730.0,106720.0,0.76002899]
[1762202703165,0.2908,106730.0,106720.0,0.76002899]
[1762202703366,0.002,106740.0,106730.0,0.0937156]
[1762202703660,0.002,106740.0,106730.0,0.33751246]
[1762202703962,0.39494,106760.0,106740.0,0.0937062]
[1762202704261,0.01289,106760.0,106750.0,0.46878475]
[1762202704465,0.39494,106760.0,106750.0,0.50237409]
[1762202704661,0.37369,106760.0,106750.0,0.50237409]
[1762202704862,0.01289,106760.0,106750.0,0.50237409]
[1762202705056,0.39427,106770.0,106760.0,0.0936893]
[1762202705256,0.5093605,106770.0,106750.0,0.73756609]
[1762202705461,0.41635,106760.0,106750.0,0.45291944]
[1762202705667,0.5100393,106760.0,106750.0,0.45300744]
[1762202705871,0.5100393,106760.0,106750.0,0.35930934]
[1762202706061,0.70338311,106760.0,106750.0,0.35930934]
[1762202706260,0.70338311,106760.0,106750.0,0.001]
[1762202706464,0.70338311,106760.0,106750.0,0.32584]
[1762202706965,0.70338311,106760.0,106750.0,0.001]
[1762202707273,0.70338311,106760.0,106750.0,0.32688]
[1762202707461,0.70338311,106760.0,106750.0,0.002]
[1762202707661,0.70338311,106760.0,106750.0,0.32484]
[1762202707873,0.70438311,106760.0,106750.0,0.32484]
[1762202708063,0.05555,106740.0,106730.0,0.0937103]
[1762202708267,0.41635,106740.0,106730.0,0.4185503]
[1762202708564,0.77715,106740.0,106730.0,0.4185503]
[1762202709763,0.77715,106740.0,106730.0,0.4185103]
[1762202709964,0.05555,106730.0,106720.0,0.12731304]
[1762202710161,0.01189,106730.0,106720.0,0.45207304]
[1762202711265,0.01189,106730.0,106720.0,0.45507304]
[1762202711665,0.05455,106730.0,106720.0,0.45507304]
[1762202712174,0.5090656,106730.0,106720.0,0.45507304]
[1762202712361,0.41535,106730.0,106720.0,0.45507304]
[1762202712768,0.37269,106730.0,106720.0,0.45507304]
[1762202712968,0.3608,106730.0,106720.0,0.68931304]
[1762202713270,0.5100656,106730.0,106720.0,0.45507374]
[1762202713670,0.5100656,106730.0,106720.0,0.13031374]
[1762202713870,0.41635,106730.0,106720.0,0.4215244]
[1762202714074,0.5100656,106730.0,106720.0,0.4215244]
[1762202715081,0.5100656,106730.0,106720.0,0.4214845]
[1762202715573,0.5100657,106730.0,106720.0,0.4214845]
[1762202715973,0.41635,106730.0,106720.0,0.4214845]
[1762202716169,0.4673978,106740.0,106730.0,0.0937157]
[1762202716170,0.37369,106740.0,106730.0,0.0937157]
[1762202716877,0.39676,106740.0,106730.0,0.0937157]
[1762202717072,0.05765,106740.0,106730.0,0.0937157]
[1762202717274,0.512157,106740.0,106730.0,0.0937157]
[1762202717478,0.41845,106740.0,106730.0,0.4185957]
[1762202717673,0.512157,106740.0,106730.0,0.4185957]
[1762202717878,0.1515357,106730.0,106720.0,0.18075259]
[1762202718079,0.5123357,106730.0,106720.0,0.12731384]
[1762202718373,0.5123357,106730.0,106720.0,0.35858934]
[1762202718568,0.5123357,106730.0,106720.0,0.03358934]
[1762202718768,0.5123357,106730.0,106720.0,0.4187245]
[1762202718974,0.5123357,106730.0,106720.0,0.325]
[1762202719571,0.1384845,106720.0,106710.0,0.50276849]
[1762202719879,0.40556,106720.0,106710.0,0.50276849]
[1762202720073,0.40456,106720.0,106710.0,0.45232184]
[1762202720379,0.40456,106720.0,106710.0,0.50276849]
[1762202720676,0.41862,106730.0,106720.0,0.093724]
[1762202721181,0.41862,106730.0,106720.0,0.12731334]
[1762202721680,0.05782,106730.0,106720.0,0.12731334]
[1762202722377,0.01306,106730.0,106720.0,0.36155334]
[1762202722583,0.01289,106740.0,106730.0,0.0937157]
[1762202722779,0.37369,106750.0,106740.0,0.0937069]
[1762202722973,0.01289,106750.0,106740.0,0.64785071]
[1762202723277,0.01289,106750.0,106740.0,0.12729624]
[1762202723278,0.05765,106750.0,106740.0,0.12729624]
[1762202723680,0.05765,106750.0,106740.0,0.45233624]
[1762202724281,0.05765,106750.0,106740.0,0.50378289]
[1762202724476,0.05765,106750.0,106740.0,0.17874289]
[1762202724674,0.05765,106750.0,106740.0,0.50378289]
[1762202724976,0.41845,106750.0,106740.0,0.17874289]
[1762202725182,0.41845,106750.0,106740.0,0.50374289]
[1762202725382,0.5121482,106750.0,106740.0,0.50374289]
[1762202725570,0.5121482,106750.0,106740.0,0.45329624]
[1762202725978,0.5141482,106750.0,106740.0,0.4187069]
[1762202726180,0.5141482,106750.0,106740.0,0.0937069]
[1762202726380,0.5121482,106750.0,106740.0,0.4186669]
[1762202726580,0.41945,106750.0,106740.0,0.4186669]
[1762202727373,0.5131482,106750.0,106740.0,0.4186669]
[1762202728185,0.5141482,106750.0,106740.0,0.4186669]
[1762202728487,0.5141482,106750.0,106740.0,0.4186269]
[1762202728785,0.42045,106750.0,106740.0,0.4186269]
[1762202729081,0.05965,106750.0,106740.0,0.4186269]
[1762202729284,0.05965,106750.0,106740.0,0.46907355]
[1762202729587,0.41845,106750.0,106740.0,0.46907355]
[1762202729786,0.41945,106750.0,106740.0,0.46907355]
[1762202730480,0.5131485,106750.0,106740.0,0.46907355]
[1762202731987,0.01389,106750.0,106740.0,0.46907355]
[1762202732687,0.0365,106750.0,106740.0,0.46907355]
[1762202733086,0.05967,106750.0,106740.0,0.46907355]
[1762202733383,0.42047,106750.0,106740.0,0.46907355]
[1762202733584,0.5141685,106750.0,106740.0,0.46907355]
[1762202734583,0.5141685,106750.0,106740.0,0.37536665]
[1762202734791,0.152587,106740.0,106730.0,0.4184714]
[1762202734991,0.513387,106740.0,106730.0,0.46893686]
[1762202735190,0.41968,106740.0,106730.0,0.46893686]
[1762202736290,0.513387,106740.0,106730.0,0.46893686]
[1762202736976,0.41968,106740.0,106730.0,0.14417686]
[1762202737184,0.513387,106740.0,106730.0,0.14417686]
[1762202737490,0.514387,106740.0,106730.0,0.14417686]
[1762202737892,0.42068,106740.0,106730.0,0.14417686]
[1762202741488,0.3749,106740.0,106730.0,0.14417686]
[1762202741692,0.0141,106740.0,106730.0,0.14417686]
[1762202741892,0.0141,106740.0,106730.0,0.28705521]
[1762202742092,0.03671,106740.0,106730.0,0.354248]
[1762202742289,0.05988,106740.0,106730.0,0.16090419]
[1762202742592,0.05888,106740.0,106730.0,0.16090419]
[1762202743993,0.03571,106740.0,106730.0,0.16090419]
[1762202744192,0.05888,106740.0,106730.0,0.39514419]
[1762202744493,0.05888,106740.0,106730.0,0.16090419]
[1762202745595,0.05888,106740.0,106730.0,0.30650419]
[1762202746186,0.05888,106740.0,106730.0,0.2393114]
[1762202746389,0.41968,106740.0,106730.0,0.2393114]
[1762202747992,0.5133871,106740.0,106730.0,0.2393114]
[1762202748194,0.41968,106740.0,106730.0,0.2393114]
[1762202748495,0.5133871,106740.0,106730.0,0.2393114]
[1762202749594,0.5133871,106740.0,106730.0,0.30650419]
[1762202751498,0.5133871,106740.0,106730.0,0.16090419]
[1762202751902,0.5133871,106740.0,106730.0,0.0937114]
[1762202752601,0.5143871,106740.0,106730.0,0.0937114]
[1762202753604,0.5143871,106740.0,106730.0,0.14428088]
[1762202753902,0.64616081,106740.0,106730.0,0.05056498]
[1762202754095,0.99232691,106740.0,106730.0,0.01556498]
[1762202754400,0.1513859,106730.0,106720.0,0.0937247]
[1762202754605,0.64395961,106730.0,106720.0,0.0937247]
[1762202754896,0.41847,106730.0,106720.0,0.1163447]
[1762202755402,0.5121859,106730.0,106720.0,0.0937247]
[1762202756399,0.1513946,106720.0,106710.0,0.4183658]
[1762202756700,0.5121946,106720.0,106710.0,0.4183658]
[1762202757088,0.5121946,106720.0,106710.0,0.4296758]
[1762202757492,0.41847,106720.0,106710.0,0.4409858]
[1762202758205,0.41847,106720.0,106710.0,0.4419858]
[1762202760299,0.64396841,106720.0,106710.0,0.001]
[1762202760493,0.64396841,106720.0,106710.0,0.0947335]
[1762202760692,0.64396841,106720.0,106710.0,0.001]
[1762202760899,0.96852841,106720.0,106710.0,0.001]
[1762202761100,0.9902482,106720.0,106710.0,0.001]
[1762202761298,0.9902482,106720.0,106710.0,0.0947335]
[1762202761493,0.8367547,106720.0,106710.0,0.0947335]
[1762202761687,0.96852841,106720.0,106710.0,0.0947335]
[1762202762306,0.1514035,106710.0,106700.0,0.10516237]
[1762202762607,0.1514212,106690.0,106680.0,0.0937558]
[1762202762801,0.64399491,106690.0,106680.0,0.0937558]
[1762202763104,1.00479491,106690.0,106680.0,0.0937558]
[1762202763303,0.05767,106670.0,106660.0,0.3276938]
[1762202763493,1.32941241,106670.0,106660.0,0.0030938]
[1762202763696,1.3294816,106670.0,106660.0,0.0030938]
[1762202763891,1.10393919,106670.0,106660.0,0.0968713]
[1762202764088,1.2357129,106670.0,106660.0,0.0968713]
[1762202764298,1.10393919,106670.0,106660.0,0.0968713]
[1762202764490,1.10393919,106670.0,106660.0,0.0978713]
[1762202764696,1.10401919,106670.0,106660.0,0.1207313]
[1762202764999,0.41853919,106670.0,106660.0,0.1207313]
[1762202765199,0.41853919,106670.0,106660.0,0.1093013]
[1762202765409,0.41853919,106670.0,106660.0,0.1207313]
[1762202765705,0.51230789,106670.0,106660.0,0.0978713]
[1762202766294,0.51230789,106670.0,106660.0,0.0040938]
[1762202766494,0.41853919,106670.0,106660.0,0.0978713]
[1762202766809,0.41853919,106670.0,106660.0,0.1093013]
[1762202767005,0.6440816,106670.0,106660.0,0.0040938]
[1762202767204,0.05767,106650.0,106640.0,0.4185484]
[1762202767408,0.03516,106630.0,106620.0,0.02597496]
[1762202767611,0.41847,106630.0,106620.0,0.43322766]
[1762202767909,0.4185801,106630.0,106620.0,0.44466766]
[1762202768497,0.4185801,106630.0,106620.0,0.45066766]
[1762202768903,0.512384,106630.0,106620.0,0.42778766]
[1762202769102,2.012384,106630.0,106620.0,0.42778766]
[1762202769397,2.14415771,106630.0,106620.0,0.10290776]
[1762202769599,2.05035381,106630.0,106620.0,0.10290776]
[1762202769806,1.9185801,106630.0,106620.0,0.10290776]
[1762202770008,1.9185801,106630.0,106620.0,0.09990776]
[1762202770512,2.14415771,106630.0,106620.0,0.00309496]
[1762202770704,2.14415771,106630.0,106620.0,0.09790766]
[1762202771006,2.05035381,106630.0,106620.0,0.09790766]
[1762202771207,1.9185801,106630.0,106620.0,0.09790766]
[1762202771405,1.9185801,106630.0,106620.0,0.10934766]
[1762202771605,1.9185801,106630.0,106620.0,0.12078766]
[1762202771802,2.2435801,106630.0,106620.0,0.12078766]
[1762202772008,1.9185801,106630.0,106620.0,0.12078766]
[1762202772305,1.9185801,106630.0,106620.0,0.00409496]
[1762202772306,2.012384,106630.0,106620.0,0.00409496]
[1762202772709,2.012384,106630.0,106620.0,0.09790766]
[1762202773011,2.012384,106630.0,106620.0,0.00409496]
[1762202773207,2.14415771,106630.0,106620.0,0.00409496]
[1762202774113,2.14415771,106630.0,106620.0,0.09790826]
[1762202774508,2.012384,106630.0,106620.0,0.09790826]
[1762202775109,2.14415771,106630.0,106620.0,0.00409496]
[1762202775701,0.1382333,106620.0,106610.0,0.0001108]
[1762202775905,0.04442,106600.0,106590.0,0.4188365]
[1762202776106,0.40522,106600.0,106590.0,0.46330922]
[1762202776412,0.04442,106600.0,106590.0,0.46330922]
[1762202776813,1.5,106610.0,106600.0,0.1289108]
[1762202777005,0.40522,106620.0,106610.0,0.128902]
[1762202777200,0.40532732,106620.0,106610.0,0.128902]
[1762202777405,0.40532732,106620.0,106610.0,0.453942]
[1762202777607,1.90532732,106620.0,106610.0,0.453942]
[1762202778716,1.54452732,106620.0,106610.0,0.58571571]
[1762202778903,0.37422,106630.0,106620.0,0.0938133]
[1762202779110,0.41864,106640.0,106630.0,0.1390145]
[1762202779313,1.91864,106640.0,106630.0,0.4641745]
[1762202779508,0.41864,106650.0,106640.0,0.1390051]
[1762202780013,0.46811869,106650.0,106630.0,0.0937995]
[1762202780318,0.04442,106630.0,106620.0,0.1390183]
[1762202780515,0.40522,106630.0,106620.0,0.4641783]
[1762202781211,0.4990239,106630.0,106620.0,0.1390183]
[1762202781514,0.4990239,106630.0,106620.0,0.0938083]
[1762202781813,0.1510455,106620.0,106610.0,0.0938177]
[1762202782016,0.51193352,106620.0,106610.0,0.4189777]
[1762202782317,0.1382416,106610.0,106600.0,0.1390348]
[1762202782508,0.4990416,106610.0,106600.0,0.1390348]
[1762202782814,0.63081531,106610.0,106600.0,0.33846085]
[1762202783412,0.4990416,106610.0,106600.0,0.43329125]
[1762202783917,0.4990416,106610.0,106600.0,0.33946085]
[1762202784215,0.4990416,106610.0,106600.0,0.10813125]
[1762202784418,0.4990416,106610.0,106600.0,0.43333125]
[1762202784617,0.4990416,106610.0,106600.0,0.33950085]
[1762202784914,0.4990416,106610.0,106600.0,0.10813125]
[1762202785616,0.4990416,106610.0,106600.0,0.01430085]
[1762202785813,0.4990416,106610.0,106600.0,0.10813125]
[1762202786311,0.4990416,106610.0,106600.0,0.01430085]
[1762202786510,0.4990416,106610.0,106600.0,0.10813115]
[1762202786714,0.4990416,106610.0,106600.0,0.15334115]
[1762202786915,0.4990415,106610.0,106600.0,0.10813115]
[1762202787124,0.4990415,106610.0,106600.0,0.01430085]
[1762202787313,0.4990415,106610.0,106600.0,0.10813115]
[1762202787511,0.40522,106610.0,106600.0,0.10813115]
[1762202787912,0.4990415,106610.0,106600.0,0.01430085]
[1762202788112,0.63081521,106610.0,106600.0,0.01430085]
[1762202788911,0.63081521,106610.0,106600.0,0.10813115]
[1762202789319,0.63081521,106610.0,106600.0,0.01430085]
[1762202791716,0.63081521,106610.0,106600.0,8.5e-07]
[1762202791922,0.1372291,106590.0,106580.0,0.42206402]
[1762202792125,0.98155234,106590.0,106580.0,0.42206402]
[1762202792316,0.98155234,106590.0,106580.0,0.32821612]
[1762202792619,0.98155234,106590.0,106580.0,0.00309612]
[1762202793017,0.98155234,106590.0,106580.0,0.00609612]
[1762202794017,1.00321932,106590.0,106580.0,0.00609612]
[1762202794327,0.1508455,106560.0,106550.0,0.32534136]
[1762202794620,0.417884,106560.0,106550.0,0.13957566]
[1762202794817,0.41177932,106560.0,106550.0,0.11637566]
[1762202795018,0.41177932,106560.0,106550.0,0.13957566]
[1762202795415,0.39818932,106560.0,106550.0,0.13957566]
[1762202795719,0.41177932,106560.0,106550.0,0.13957566]
[1762202796319,0.41377932,106560.0,106550.0,0.13957566]
[1762202796914,0.41377932,106560.0,106550.0,0.27134937]
[1762202797120,0.40018932,106560.0,106550.0,0.13957566]
[1762202797320,0.40018932,106560.0,106550.0,0.27134937]
[1762202797514,0.41377932,106560.0,106550.0,0.13957566]
[1762202797724,0.40018932,106560.0,106550.0,0.13957566]
[1762202798323,0.41177932,106560.0,106550.0,0.13957566]
[1762202798525,0.39918932,106560.0,106550.0,0.13957566]
[1762202798725,0.41277932,106560.0,106550.0,0.46469566]
[1762202799027,0.41377932,106560.0,106550.0,0.46469566]
[1762202800724,0.40018932,106560.0,106550.0,0.59646937]
[1762202801622,0.03938932,106560.0,106550.0,0.46469566]
[1762202802119,0.03838932,106560.0,106550.0,0.46469566]
[1762202802319,0.05197932,106560.0,106550.0,0.46469566]
[1762202802521,0.03838932,106560.0,106550.0,0.46469566]
[1762202803231,0.03838932,106560.0,106550.0,0.59646937]
[1762202803432,0.03838932,106560.0,106550.0,0.46469566]
[1762202804826,0.03838932,106560.0,106550.0,0.47626566]
[1762202805627,0.03838932,106560.0,106550.0,0.60803937]
[1762202806531,0.03838932,106560.0,106550.0,0.47626566]
[1762202806734,0.14617472,106560.0,106550.0,0.47626566]
[1762202807027,0.50697472,106560.0,106550.0,0.13957566]
[1762202807234,0.50697472,106560.0,106550.0,0.46465566]
[1762202807629,0.41310932,106560.0,106550.0,0.47846566]
[1762202807832,0.50697472,106560.0,106550.0,0.13957566]
[1762202808136,0.50697472,106560.0,106550.0,0.46461566]
[1762202808334,0.50697472,106560.0,106550.0,0.02250136]
[1762202808520,0.50697472,106560.0,106550.0,0.41909556]
[1762202808829,0.50697472,106560.0,106550.0,0.46314556]
[1762202809027,0.50697472,106560.0,106550.0,0.13810556]
[1762202809932,0.1382342,106550.0,106540.0,0.00309728]
[1762202810129,0.40516,106550.0,106540.0,0.00309728]
[1762202810330,0.40516,106550.0,106540.0,0.15484038]
[1762202810535,0.04436,106550.0,106540.0,0.34882758]
[1762202810835,0.04436,106550.0,106540.0,0.15484038]
[1762202811838,0.405264,106560.0,106550.0,0.1517342]
[1762202812131,0.000104,106560.0,106550.0,0.8382542]
[1762202812322,0.000104,106560.0,106550.0,0.6714414]
[1762202812528,0.000104,106560.0,106550.0,1.04141047]
[1762202812927,0.40516,106590.0,106580.0,0.1517078]
[1762202813232,0.40516,106590.0,106580.0,0.4775878]
[1762202813833,0.512589,106590.0,106580.0,0.4775878]
[1762202814026,0.1382078,106580.0,106570.0,0.1517147]
[1762202814233,0.4990078,106580.0,106570.0,0.1517147]
[1762202814734,0.40516,106580.0,106570.0,0.4776747]
[1762202814933,0.45473763,106590.0,106580.0,0.1378978]
[1762202814934,0.40525353,106590.0,106580.0,0.1378978]
[1762202815140,0.50309253,106590.0,106580.0,0.1378978]
[1762202815436,0.40925353,106590.0,106580.0,0.1378978]
[1762202815640,0.49909253,106590.0,106580.0,0.1378978]
[1762202816037,0.49909253,106590.0,106580.0,0.04405]
[1762202816338,0.49909253,106590.0,106580.0,0.1378978]
[1762202816534,0.1382078,106580.0,106570.0,0.1517131]
[1762202816742,0.4990078,106580.0,106570.0,0.38394]
[1762202817039,0.40516,106580.0,106570.0,0.4777966]
[1762202817733,0.40716,106580.0,106570.0,0.4777966]
[1762202818434,0.3628,106580.0,106570.0,0.4777966]
[1762202818942,0.40716,106580.0,106570.0,0.4777966]
[1762202819334,0.5010078,106580.0,106570.0,0.4777966]
[1762202819636,0.38581,106580.0,106570.0,0.1517166]
[1762202819836,0.40716,106580.0,106570.0,0.4777966]
[1762202820240,0.40716,106580.0,106570.0,0.1517166]
[1762202820448,0.5010078,106580.0,106570.0,0.4777566]
[1762202820643,0.3628,106580.0,106570.0,0.4777566]
[1762202820838,0.3628,106580.0,106570.0,0.6717438]
[1762202821042,0.3628,106580.0,106570.0,0.95631806]
[1762202821242,0.002,106580.0,106570.0,0.95631806]
[1762202821442,0.002,106580.0,106570.0,0.20173086]
[1762202821644,0.42108,106580.0,106570.0,0.18792086]
[1762202821942,0.5139278,106580.0,106570.0,0.18792086]
[1762202822140,0.5139278,106580.0,106570.0,0.05001426]
[1762202822341,0.42008,106580.0,106570.0,0.4641066]
[1762202822540,0.42008,106580.0,106570.0,0.51412086]
[1762202823147,0.41908,106580.0,106570.0,0.51412086]
[1762202823445,0.42008,106580.0,106570.0,0.51412086]
[1762202824248,0.5149278,106580.0,106570.0,0.0938566]
[1762202824448,0.5149278,106580.0,106570.0,0.4200166]
[1762202824648,0.5149278,106580.0,106570.0,0.4640666]
[1762202824850,0.42108,106580.0,106570.0,0.4640666]
[1762202825145,0.42108,106580.0,106570.0,0.51408086]
[1762202825350,0.02501,106580.0,106570.0,0.51408086]
[1762202825553,0.06028,106580.0,106570.0,0.51408086]
[1762202826452,0.06028,106580.0,106570.0,0.8926138]
[1762202826453,0.002,106580.0,106570.0,0.8926138]
[1762202826652,9.353e-05,106590.0,106580.0,0.1413178]
[1762202826949,0.04436,106610.0,106600.0,0.1378802]
[1762202827252,0.04436,106610.0,106600.0,0.4642402]
[1762202827549,0.41275,106620.0,106610.0,0.1378714]
[1762202827753,0.05195,106620.0,106610.0,0.1883991]
[1762202827946,0.05195,106620.0,106610.0,0.3823863]
[1762202828955,0.05195,106620.0,106610.0,0.9776663]
[1762202829358,0.05595,106620.0,106610.0,0.9776663]
[1762202829748,0.06228,106620.0,106610.0,0.9776663]
[1762202830354,0.06228,106620.0,106610.0,1.1100391]
[1762202830557,0.06228,106620.0,106610.0,0.8755591]
[1762202830849,0.06228,106620.0,106610.0,0.8757191]
[1762202831057,0.06228,106620.0,106610.0,0.1883991]
[1762202831248,0.06228,106620.0,106610.0,0.5148791]
[1762202831445,0.42308,106620.0,106610.0,0.1883991]
[1762202831651,0.42308,106620.0,106610.0,0.1378714]
[1762202831851,0.5168927,106620.0,106610.0,0.1378714]
[1762202832052,0.5168927,106620.0,106610.0,0.4644315]
[1762202832256,0.5168927,106620.0,106610.0,0.32656]
[1762202832551,0.5168927,106620.0,106610.0,0.02178]
[1762202832850,0.42308,106620.0,106610.0,0.4643915]
[1762202833959,0.5168927,106620.0,106610.0,0.4643915]
[1762202834163,0.5168927,106620.0,106610.0,0.32652]
[1762202834450,0.5168927,106620.0,106610.0,0.4421215]
[1762202834652,0.5168927,106620.0,106610.0,0.37033]
[1762202834951,0.5168927,106620.0,106610.0,0.04381]
[1762202835257,0.42308,106620.0,106610.0,0.4420415]
[1762202835852,0.5168928,106620.0,106610.0,0.4420415]
[1762202836444,0.5168928,106620.0,106610.0,0.32644]
[1762202836851,0.1511715,106610.0,106600.0,0.1383447]
[1762202837052,0.5119715,106610.0,106600.0,0.4201447]
[1762202837261,0.41815,106610.0,106600.0,0.4646647]
[1762202837467,0.5119715,106610.0,106600.0,0.4646647]
[1762202837959,0.1511803,106600.0,106590.0,0.1383534]
[1762202838259,0.5119803,106600.0,106590.0,0.4646734]
[1762202838462,0.5119803,106600.0,106590.0,0.37084]
[1762202838766,0.1511891,106590.0,106580.0,0.4647308]
[1762202838957,0.5119891,106590.0,106580.0,0.4647308]
[1762202839158,0.5119891,106590.0,106580.0,0.1384508]
[1762202839459,0.41815,106590.0,106580.0,0.1384547]
[1762202839665,0.5119892,106590.0,106580.0,0.1384547]
[1762202840159,0.5119892,106590.0,106580.0,8.67e-05]
[1762202840554,0.5119892,106590.0,106580.0,0.1384547]
[1762202840865,0.40552,106590.0,106580.0,0.1384547]
[1762202841260,0.4993592,106590.0,106580.0,0.1384547]
[1762202841966,0.41815,106590.0,106580.0,0.1384547]
[1762202844257,0.05735,106590.0,106580.0,0.1384547]
[1762202844462,0.05735,106590.0,106580.0,0.5497824]
[1762202845168,0.39649,106600.0,106590.0,0.1383592]
[1762202845361,0.41815,106600.0,106590.0,0.6585464]
[1762202845556,0.41815,106600.0,106590.0,0.4645592]
[1762202846257,0.42015,106600.0,106590.0,0.4645592]
[1762202846459,0.3628,106600.0,106590.0,0.4782592]
[1762202846659,0.002,106600.0,106590.0,1.0835741]
[1762202846860,0.002,106600.0,106590.0,1.3180941]
[1762202847060,0.002,106600.0,106590.0,1.2675664]
[1762202848065,0.01263,106610.0,106600.0,0.0938304]
[1762202848261,0.05768,106610.0,106600.0,0.54867546]
[1762202848466,0.41848,106610.0,106600.0,0.18787546]
[1762202849766,0.41848,106610.0,106600.0,0.19477546]
[1762202850171,0.3608,106620.0,106610.0,0.1449916]
[1762202850462,0.38692,106650.0,106640.0,0.1449152]
[1762202850662,0.06097,106650.0,106640.0,0.6581324]
[1762202851062,0.42177,106650.0,106640.0,0.51457026]
[1762202851364,0.42177,106650.0,106640.0,0.37035]
[1762202851568,0.42177,106650.0,106640.0,0.4644252]
[1762202851968,0.06097,106650.0,106640.0,0.4644252]
[1762202854270,0.42177,106650.0,106640.0,0.37063]
[1762202854466,0.42177,106650.0,106640.0,0.4644252]
[1762202855359,0.06097,106650.0,106640.0,0.4644252]
[1762202858476,0.515556,106650.0,106640.0,0.37063]
[1762202858660,0.515556,106650.0,106640.0,0.37047]
[1762202858866,0.515556,106650.0,106640.0,0.4642648]
[1762202859167,0.42177,106650.0,106640.0,0.4642648]
[1762202859766,0.42377,106650.0,106640.0,0.4642648]
[1762202860775,0.517556,106650.0,106640.0,0.4199948]
[1762202860976,0.517556,106650.0,106640.0,0.4431348]
[1762202861277,0.517556,106650.0,106640.0,0.34934]
[1762202861666,0.517556,106650.0,106640.0,0.4431348]
[1762202861977,0.517556,106650.0,106640.0,0.4642648]
[1762202862281,0.42377,106650.0,106640.0,0.4642648]
[1762202862461,0.005,106650.0,106640.0,0.671782]
[1762202862666,0.005,106650.0,106640.0,0.4777948]
[1762202862861,0.02812,106650.0,106640.0,0.4777948]
[1762202863275,0.05011,106650.0,106640.0,0.4777948]
[1762202863468,0.005,106650.0,106640.0,1.032582]
[1762202865780,0.005,106650.0,106640.0,0.8385948]
[1762202866572,0.005,106650.0,106640.0,1.032582]
[1762202866768,0.06408,106650.0,106640.0,1.019052]
[1762202867073,0.06408,106650.0,106640.0,0.4639848]
[1762202868174,0.1578664,106650.0,106640.0,0.4639848]
[1762202868376,0.06408,106650.0,106640.0,0.4639848]
[1762202869383,0.005,106650.0,106640.0,0.671412]
[1762202869879,0.005,106650.0,106640.0,1.032212]
[1762202870382,0.005,106650.0,106640.0,0.97019138]
[1762202870877,0.005,106650.0,106640.0,0.60939138]
[1762202871479,0.005,106650.0,106640.0,0.97019138]
[1762202875173,0.003,106650.0,106640.0,1.02061644]
[1762202875581,0.04881,106650.0,106640.0,0.88864986]
[1762202875780,0.06208,106650.0,106640.0,0.52784986]
[1762202875981,0.06208,106650.0,106640.0,0.51440986]
[1762202876880,0.516666,106650.0,106640.0,0.18848986]
[1762202877075,0.516666,106650.0,106640.0,0.37610506]
[1762202877283,0.1528748,106640.0,106630.0,0.14430745]
[1762202877480,0.64564138,106640.0,106630.0,0.05050385]
[1762202877681,0.05908,106630.0,106620.0,0.51470885]
[1762202877880,0.41988,106630.0,106620.0,0.51470885]
[1762202878176,0.5136836,106630.0,106620.0,0.51470885]
[1762202878380,0.41988,106630.0,106620.0,0.51470885]
[1762202879277,0.5136835,106630.0,106620.0,0.51470885]
[1762202879685,0.64565008,106630.0,106620.0,0.05050385]
[1762202880183,0.64565008,106630.0,106620.0,0.14431615]
[1762202880389,0.64565008,106630.0,106620.0,0.07260385]
[1762202880592,0.64565008,106630.0,106620.0,0.05050385]
[1762202880792,0.1528923,106620.0,106610.0,0.51472065]
[1762202880987,0.5136923,106620.0,106610.0,0.42090385]
[1762202881182,0.64565888,106620.0,106610.0,0.05050385]
[1762202881488,0.02321,106610.0,106600.0,0.52162995]
[1762202881684,0.39728,106620.0,106610.0,0.1159212]
[1762202881881,0.41988,106620.0,106610.0,0.18900505]
[1762202882582,0.5136924,106620.0,106610.0,0.37622385]
[1762202882781,0.42188,106620.0,106610.0,0.47004505]
[1762202882978,0.42188,106620.0,106610.0,0.51472505]
[1762202883692,0.5156924,106620.0,106610.0,0.51472505]
[1762202884189,0.5156924,106620.0,106610.0,0.42090385]
[1762202884398,0.1529012,106610.0,106600.0,0.05050385]
[1762202884688,0.1500788,106590.0,106580.0,8.67e-05]
[1762202884879,1.07753587,106590.0,106580.0,8.67e-05]
[1762202885897,1.07753587,106590.0,106580.0,0.0939342]
[1762202886687,1.07753587,106590.0,106580.0,0.1160342]
[1762202886688,0.8716787,106590.0,106580.0,0.1160342]
[1762202886887,0.8716787,106590.0,106580.0,0.0939342]
[1762202887595,0.8716787,106590.0,106580.0,8.67e-05]
[1762202887793,0.88086544,106590.0,106580.0,8.67e-05]
[1762202887994,1.01283202,106590.0,106580.0,8.67e-05]
[1762202888190,1.24739202,106590.0,106580.0,8.67e-05]
[1762202888494,1.32103494,106590.0,106580.0,8.67e-05]
[1762202889289,0.139668,106570.0,106560.0,0.1159636]
[1762202889484,0.861268,106570.0,106560.0,0.1159636]
[1762202889687,0.1396752,106560.0,106550.0,0.4683196]
[1762202889887,0.63244178,106560.0,106550.0,0.32624]
[1762202890394,1.54581,106550.0,106540.0,0.14855518]
[1762202890594,1.90661,106550.0,106540.0,0.14855518]
[1762202890790,2.13245058,106550.0,106540.0,0.00309728]
[1762202891390,0.04581,106520.0,106510.0,0.4649092]
[1762202891593,0.41995887,106520.0,106510.0,0.4649092]
[1762202892194,0.41895887,106520.0,106510.0,0.4649092]
[1762202892598,0.51285927,106520.0,106510.0,0.4649092]
[1762202892791,0.51285927,106520.0,106510.0,0.4659092]
[1762202892991,0.51285927,106520.0,106510.0,0.4212292]
[1762202893186,0.64482585,106520.0,106510.0,0.0949092]
[1762202893393,0.87724545,106520.0,106510.0,0.0949092]
[1762202893600,0.74527887,106520.0,106510.0,0.1170092]
[1762202894895,0.74527887,106520.0,106510.0,0.0949092]
[1762202895604,0.74527887,106520.0,106510.0,0.1176792]
[1762202896099,0.82027697,106520.0,106510.0,0.1176792]
[1762202896304,0.82027697,106520.0,106510.0,0.0949092]
[1762202896801,0.74527887,106520.0,106510.0,0.1399592]
[1762202897502,0.04488887,106520.0,106510.0,0.1399592]
[1762202897708,7.887e-05,106520.0,106510.0,1.19392578]
[1762202897904,0.3608,106550.0,106540.0,0.0938828]
[1762202898103,0.41847,106560.0,106550.0,0.138924]
[1762202898302,0.38219,106560.0,106550.0,0.138924]
[1762202898508,0.3608,106560.0,106550.0,0.138924]
[1762202898698,0.3608,106560.0,106550.0,0.27089058]
[1762202898899,0.38219,106560.0,106550.0,0.138924]
[1762202899404,0.3648,106560.0,106550.0,0.138924]
[1762202899803,0.41866,106560.0,106550.0,0.465524]
[1762202901210,0.38219,106560.0,106550.0,0.465524]
[1762202901915,0.3608,106560.0,106550.0,0.465524]